[Event "Prague Festival Open 2022"]
[Site "Prague"]
[Date "2022.06.10"]
[Round "1.6"]
[White "Omelja, Artem"]
[Black "Shatil, Shir"]
[Result "1/2-1/2"]
[ECO "E41"]
[WhiteElo "2515"]
[BlackElo "2083"]
[Annotator "TA"]
[PlyCount "83"]
[EventDate "2022.06.10"]
[EventType "swiss"]
[EventCountry "CZE"]
[SourceTitle "playchess.com"]
[Source "ChessBase"]
[SourceQuality "1"]
[TimeControl "40/5400+30:1800+30"]

{[%evp 21,83,0,33,0,0,-6,0,-18,-13,-7,-14,-64,-42,-43,-47,-68,-58,-54,-35,-168,-150,-114,-30,-42,-23,-34,-17,-73,-13,-75,-57,-60,-14,-49,-37,-39,-36,-91,0,-50,0,-51,-11,-38,0,-102,-97,-97,-97,-84,-28,-79,-60,-73,-60,-54,-52,-52,0,-32,0,-71,0,-42]} 1. d4 {[%emt 0:02:28] Prusikin,M} e6 {[%emt 0:00:03]} 2. c4 {[%emt 0:00:06]} Nf6 {[%emt 0:00:05]} 3. Nc3 {[%emt 0:00:17]} Bb4 {[%emt 0:00:05]} 4. e3 {[%emt 0:00:06]} c5 {[%emt 0:00:13]} 5. Bd3 {[%emt 0:00:23]} O-O {[%emt 0:00:06]} 6. Nf3 {[%emt 0:00:14]} Bxc3+ {[%emt 0:00:48]} 7. bxc3 {[%emt 0:00:08]} d6 {[%emt 0:00:02]} 8. O-O {[%emt 0:00:35]} Nc6 {[%emt 0:00:58]} 9. Nd2 {[%emt 0:01:16]} e5 {[%emt 0:01:40]} 10. d5 {[%emt 0:00:16]} Ne7 {[%emt 0:00:06]} 11. Qc2 {[%emt 0:02:20]} g6 {[%emt 0:01:17][%cal Bg7g6,Bg6g5][%mdl 32] has lost popularity (11...Ng6).} 12. f4 {[%emt 0:02:16] E41: Nimzo-Indian: Rubinstein: 4...c5 5 Bd3, including Hübner Variation.} exf4 {[%emt 0:01:13]} 13. Rxf4 {[%emt 0:00:07]} Ng4 {[%emt 0:11:49] [#]} 14. e4 $146 {[%emt 0:00:08]} ({Predecessor:} 14. Nf3 f6 15. h3 Ne5 16. Nxe5 dxe5 17. Rf1 f5 18. a4 a5 19. Bd2 Qd6 20. Rf2 {0-1 (45) Mesaros,F (2449)-Prusikin,M (2517) Lienz 2019 EXT 2020 [Prusikin,M]}) 14... g5 {[%emt 0:11:20]} 15. Rf3 {[%emt 0:00:57]} Ng6 {[%emt 0:02:23]} 16. h3 {[%emt 0:02:32]} ({White should try} 16. Nf1 $11) 16... N4e5 $15 {[%emt 0:00:31]} 17. Rf2 {[%emt 0:00:26]} g4 {[%emt 0:05:04]} 18. hxg4 {[%emt 0:00:13]} Nxg4 {[%emt 0:00:09] Pair of Knights!} 19. Rf3 {[%emt 0:00:08]} N6e5 {[%emt 0:04:53] Hoping for ...Qh4.} 20. Rg3 {[%emt 0:00:09]} (20. Rh3 $1 $15) 20... Qh4 {[%emt 0:07:50]} 21. Nf1 {[%emt 0:00:08] [#]} Kh8 {[%emt 0:00:49]} (21... f5 $1 $17 {[%cal Rf5e4] And now ...fxe4 would win.} 22. Rh3 (22. exf5 Nxd3 23. Qxd3 Rxf5 $17) 22... Qe1) 22. Bf4 $11 {[%emt 0:02:01]} Rg8 {[%emt 0:03:52]} 23. Be2 {[%emt 0:01:25]} Rg6 {[%emt 0:02:13]} 24. Bxg4 {[%emt 0:01:33]} Nxg4 {[%emt 0:05:52]} (24... Bxg4 $17 25. Ne3 Re8) 25. Rf3 {[%emt 0:00:24]} (25. a4 $11) 25... Bd7 $17 {[%emt 0:02:26]} 26. Bg3 {[%emt 0:00:40]} Qe7 {[%emt 0:01:16]} (26... Qh5 $15 27. Bf4 Rag8) 27. Re1 {[%emt 0:00:15]} f6 {[%emt 0:05:16]} 28. Re2 {[%emt 0:01:07]} Rag8 {[%emt 0:00:52]} 29. Qd2 {[%emt 0:03:01]} (29. Ne3 $15 Ne5 30. Bxe5 fxe5 31. Ref2) 29... R8g7 {[%emt 0:03:13]} ({Better is} 29... Ne5 $17 30. Bxe5 fxe5) 30. Qd3 {[%emt 0:02:31]} (30. Ne3 $11 Rg5 31. Bf4) 30... Rg8 {[%emt 0:03:10]} ({Black should play} 30... Rh6 $15) 31. Bf4 {[%emt 0:00:14]} (31. Qd2 $11) 31... Qg7 {[%emt 0:01:54] [#] White must now prevent ...Ne5.} 32. Qd2 {[%emt 0:02:59]} ({Avoid the trap} 32. Bxd6 $2 Ne5 33. g3 Nxd3 $19) (32. Rg3 $5 {[%cal Rf4d6]}) 32... Qe7 {[%emt 0:01:14]} 33. Ng3 {[%emt 0:00:53]} (33. Bg3 $11 {remains equal.}) 33... Ne5 {[%emt 0:07:22]} 34. Bxe5 {[%emt 0:00:06]} fxe5 {[%emt 0:02:36]} 35. Nf5 {[%emt 0:00:39]} Qf6 {[%emt 0:01:37]} (35... Bxf5 $17 36. exf5 Rg4) 36. Ref2 {[%emt 0:00:37]} (36. Qe1 $11 {keeps the balance.} Bxf5 37. Rxf5) 36... Bxf5 {[%emt 0:00:31]} 37. Rxf5 {[%emt 0:01:39]} Qh4 {[%emt 0:00:09]} 38. Qe3 {[%emt 0:00:55]} Rh6 {[%emt 0:03:43][%csl Gh6][%cal Rh4h1]} 39. Kf1 {[%emt 0:00:07]} Rhg6 {[%emt 0:01:20] ...Rg3 is the strong threat.} 40. Kg1 $1 {[%emt 0:03:30]} Rh6 {[%emt 0:01:57][%csl Gh6][%cal Rh4h1]} 41. Kf1 {[%emt 0:30:07]} Rhg6 {[%emt 0:30:50]} 42. Kg1 $1 {[%emt 0:00:42] Against Qh1+.  Weighted Error Value: White=0.29 (precise) /Black=0.25 (precise)} 1/2-1/2

[Event "Prague Festival Open 2022"]
[Site "Prague"]
[Date "2022.06.10"]
[Round "1.7"]
[White "Muzik, Martin"]
[Black "Alsina Leal, Daniel"]
[Result "0-1"]
[ECO "B13"]
[WhiteElo "2074"]
[BlackElo "2508"]
[Annotator "TA"]
[PlyCount "78"]
[EventDate "2022.06.10"]
[EventType "swiss"]
[EventCountry "CZE"]
[SourceTitle "playchess.com"]
[Source "ChessBase"]
[SourceQuality "1"]
[TimeControl "40/5400+30:1800+30"]

{[%evp 10,78,26,25,16,33,30,20,22,-29,10,19,20,4,22,13,12,0,0,0,0,-30,-28,-125,-64,-109,-109,-148,-160,-153,-111,-114,-110,-112,-106,-106,-112,-126,-123,-136,-135,-150,-141,-134,-139,-181,-138,-143,-143,-144,-119,-145,-145,-210,-205,-379,-383,-348,-290,-422,-404,-443,-425,-386,-342,-684,-673,-643,-621,-1582,-1510]} 1. e4 {[%emt 0:00:04]} c6 {[%emt 0:11:06]} 2. d4 {[%emt 0:01:19]} d5 {[%emt 0:00:27]} 3. exd5 {[%emt 0:01:15]} cxd5 {[%emt 0:00:08]} 4. c3 {[%emt 0:00:44]} Nf6 {[%emt 0:01:49]} 5. Bd3 {[%emt 0:01:22]} Bg4 {[%emt 0:00:43]} 6. Nf3 {[%emt 0:03:33]} Qc7 {[%emt 0:06:54] B13: Caro-Kann: Exchange Variation and Panov-Botvinnik Attack.} 7. Qa4+ {[%emt 0:08:44]} Bd7 {[%emt 0:00:44]} 8. Qc2 {[%emt 0:08:52]} Nc6 {[%emt 0:04:36] The position is equal.} 9. Bg5 {[%emt 0:02:29] [#]} (9. O-O $142) 9... Bg4 $146 {[%emt 0:02:15]} (9... h6 $5 {[%cal Rh6g5]} 10. Bh4 Nh5 $11) ({Predecessor:} 9... e6 10. O-O Bd6 11. Re1 Ng4 12. h3 Nf6 13. Qe2 h6 14. Bc1 O-O-O 15. b4 g5 {1-0 (38) Herrera,M (2007)-Perez,L (1957) Cali 2008}) 10. Nbd2 {[%emt 0:01:55]} e6 {[%emt 0:03:55]} 11. Bh4 {[%emt 0:15:12]} Nh5 {[%emt 0:03:34]} 12. Bg3 {[%emt 0:02:04]} Nf4 {[%emt 0:03:39]} 13. O-O {[%emt 0:04:38]} Bd6 {[%emt 0:05:57]} 14. Rfe1 {[%emt 0:09:38]} O-O-O {[%emt 0:10:19]} 15. Re3 {[%emt 0:04:28]} ({Don't blunder} 15. Bxh7 $2 g6 16. Bxg6 (16. Bxf4 $2 Bxf4 17. g3 Bxd2 $19) 16... Nxg6 $19) 15... h5 {[%emt 0:08:07][%cal Og7g5]} 16. Ne5 {[%emt 0:16:09]} (16. h4 $1 $11) 16... Nxe5 {[%emt 0:14:52]} (16... Bxe5 $17 17. dxe5 d4 18. cxd4 Nxd3 19. Rxd3 Bf5) 17. Bxf4 {[%emt 0:03:35]} Nc4 {[%emt 0:00:59]} 18. Bxd6 {[%emt 0:09:16]} Nxe3 {[%emt 0:00:40]} 19. fxe3 {[%emt 0:00:40]} Rxd6 {[%emt 0:02:06]} 20. h3 {[%emt 0:00:23]} Bf5 {[%emt 0:00:58]} 21. Bxf5 {[%emt 0:00:08]} exf5 {[%emt 0:00:04]} 22. Qxf5+ {[%emt 0:00:07]} Qd7 {[%emt 0:01:38]} 23. Qd3 {[%emt 0:02:45]} Re8 {[%emt 0:03:09]} 24. Rf1 {[%emt 0:00:22]} Qe7 {[%emt 0:07:12]} 25. Rf3 {[%emt 0:00:27]} Rf6 {[%emt 0:00:22] Against Qf5+} 26. Rxf6 {[%emt 0:02:10]} Qxf6 $17 {[%emt 0:00:05][%mdl 4096] Endgame KQR-KQN} ({Worse is} 26... gxf6 27. Kf2 $17) 27. Nf3 {[%emt 0:00:52]} Qe6 {[%emt 0:00:56]} 28. Kf2 {[%emt 0:00:18]} Qe4 {[%emt 0:00:44]} 29. Qxe4 {[%emt 0:00:47]} dxe4 {[%emt 0:02:04] KR-KN} ({Stronger than} 29... Rxe4 30. Ne5 $17) 30. Ne5 {[%emt 0:00:25]} f6 {[%emt 0:00:53]} 31. Ng6 {[%emt 0:00:21] [#]} (31. Nc4 $17 {is a better defense.} Kd7 32. a4) 31... Re6 $1 $19 {[%emt 0:02:58]} 32. Kg3 $2 {[%emt 0:00:10]} (32. Nf4 {might work better.} Ra6 33. a3) 32... Ra6 {[%emt 0:00:15]} 33. a3 {[%emt 0:01:09]} Rb6 {[%emt 0:00:06]} 34. b4 {[%emt 0:00:15]} (34. h4 $142) 34... Ra6 {[%emt 0:00:39]} 35. Kf4 {[%emt 0:00:49]} Rxa3 {[%emt 0:00:15]} 36. c4 {[%emt 0:00:21]} Ra4 {[%emt 0:00:38]} 37. Kxe4 $2 {[%emt 0:00:08] [#]} (37. Ne7+ Kd7 38. Nd5) 37... Rxb4 {[%emt 0:00:11] Black is clearly winning.} 38. Kd3 {[%emt 0:00:29]} Rb3+ {[%emt 0:00:46]} 39. Ke4 {[%emt 0:00:54]} a5 {[%emt 0:00:26] Weighted Error Value: White=0.46/Black=0.06 (flawless)} 0-1

[Event "Prague Festival Open 2022"]
[Site "Prague"]
[Date "2022.06.10"]
[Round "1.8"]
[White "Santiago, Yago De Moura"]
[Black "Mlynek, Petr"]
[Result "1-0"]
[ECO "D47"]
[WhiteElo "2498"]
[BlackElo "2073"]
[Annotator "TA"]
[PlyCount "81"]
[EventDate "2022.06.10"]
[EventType "swiss"]
[EventCountry "CZE"]
[SourceTitle "playchess.com"]
[Source "ChessBase"]
[SourceQuality "1"]
[TimeControl "40/5400+30:1800+30"]

{[%evp 21,81,-38,-40,-90,-58,-66,-6,-16,-23,-14,19,-6,0,0,0,0,0,7,0,0,79,74,80,81,72,72,79,79,69,71,76,16,228,220,235,131,116,95,239,239,239,239,232,224,231,231,330,313,297,174,215,189,422,407,1065,500,499,489,468,464,812,718]} 1. d4 {[%emt 0:00:08]} d5 {[%emt 0:00:12]} 2. c4 {[%emt 0:00:20]} c6 {[%emt 0:00:14]} 3. Nf3 {[%emt 0:00:20]} e6 {[%emt 0:00:25]} 4. e3 {[%emt 0:00:34]} Nf6 {[%emt 0:00:18]} 5. Nc3 {[%emt 0:00:28]} Nbd7 {[%emt 0:00:23]} 6. Bd3 {[%emt 0:02:36]} dxc4 {[%emt 0:00:54]} 7. Bxc4 {[%emt 0:00:09]} b5 {[%emt 0:00:18]} 8. Bb3 {[%emt 0:00:08]} a6 {[%emt 0:06:55]} 9. a4 {[%emt 0:03:17]} Bb7 {[%emt 0:01:05]} 10. O-O {[%emt 0:01:12]} b4 {[%emt 0:01:41]} 11. Ne2 {[%emt 0:00:11]} c5 {[%emt 0:01:06]} 12. Nf4 {[%emt 0:00:32] D47: Semi-Slav: Meran System.} (12. a5 $15) 12... Bd6 {[%emt 0:01:32]} 13. Ng5 {[%emt 0:06:10][%cal Og5f7] Hoping for Nxf7!} Bxf4 {[%emt 0:03:38]} ({Black should play} 13... Qe7 $1 $15) 14. exf4 $11 {[%emt 0:00:08][%cal Of4f5] And now f5! would win. The position is equal.} O-O {[%emt 0:02:42]} 15. Be3 {[%emt 0:04:48]} Rc8 {[%emt 0:05:29]} 16. Rc1 {[%emt 0:07:57][%cal Rd4c5] [#]} cxd4 $146 {[%emt 0:07:20]} ({Predecessor:} 16... Qa5 17. Qe2 h6 18. Nf3 Bd5 19. Bxd5 Nxd5 20. dxc5 Nxe3 21. Qxe3 Rxc5 22. Rxc5 Qxc5 23. Rc1 Qa5 {½-½ (48) Epishin,V (2300)-Meister,J (2405) Togliatti 1985}) 17. Qxd4 {[%emt 0:08:38]} Bd5 {[%emt 0:05:50]} 18. Bxd5 {[%emt 0:13:37]} ({Not} 18. Qxb4 $2 Rb8 19. Qd2 Rxb3 $19) 18... Nxd5 {[%emt 0:01:41]} 19. Qd3 {[%emt 0:00:09][%csl Gg5,LRa6,LRh7][%cal Rd3h7]} N7f6 {[%emt 0:01:31][%cal Od5f4]} 20. Qxa6 {[%emt 0:02:55]} (20. Rxc8 {with more complications.} Qxc8 21. Rc1 Qd7 22. b3) 20... Nxe3 {[%emt 0:07:22] Pair of Knights!} (20... Ra8 $1 $11 21. Qd3 Nxe3 22. Qxe3 Rxa4) 21. Rxc8 {[%emt 0:00:23]} ({Worse is} 21. fxe3 Rxc1 22. Rxc1 Qd2 $17) 21... Qxc8 {[%emt 0:00:25]} 22. Qxc8 {[%emt 0:00:14]} Rxc8 {[%emt 0:00:05]} 23. fxe3 {[%emt 0:00:07][%mdl 4096] Endgame KRN-KRN} Rc2 {[%emt 0:01:14]} 24. Rb1 {[%emt 0:05:21]} Nd5 {[%emt 0:02:43]} 25. a5 {[%emt 0:09:51]} Nxe3 {[%emt 0:06:11]} 26. a6 {[%emt 0:01:48]} ({White should try} 26. g3 $16) 26... Rc7 $2 {[%emt 0:11:10]} (26... Rxg2+ $11 {and Black stays safe.} 27. Kh1 Rc2) 27. Ne4 $18 {[%emt 0:05:56]} Kf8 {[%emt 0:02:39]} 28. Nd6 {[%emt 0:02:04]} (28. Ra1 $18 {aiming for a7.} Ra7 29. Nd6) 28... Nd5 $16 {[%emt 0:02:46]} 29. Ra1 {[%emt 0:03:31]} Ra7 {[%emt 0:02:00] [#]} (29... Ke7 $16) 30. Nb5 $1 $18 {[%emt 0:00:41]} Ra8 {[%emt 0:00:29]} 31. a7 {[%emt 0:00:29]} Ke7 {[%emt 0:00:37]} 32. g3 {[%emt 0:02:37]} Kd7 {[%emt 0:04:14] [#]} 33. Rc1 {[%emt 0:00:11]} f6 {[%emt 0:01:14]} (33... g6 $142 34. Kf2 Rh8) 34. Kf2 {[%emt 0:03:39]} g5 {[%emt 0:02:01]} 35. Kf3 {[%emt 0:03:56]} (35. f5 $142) 35... gxf4 {[%emt 0:01:22]} 36. gxf4 {[%emt 0:00:13][%cal Of4f5] Black must now prevent f5!} Rg8 $2 {[%emt 0:01:38]} (36... f5 37. Rc2 h5) 37. Ke4 {[%emt 0:02:17] Strongly threatening f5.} h5 {[%emt 0:01:13]} (37... f5+ $142 38. Ke5 Ra8) 38. h3 {[%emt 0:01:38]} (38. f5 $142) 38... f5+ {[%emt 0:08:12]} 39. Ke5 {[%emt 0:01:02]} Ra8 {[%emt 0:00:14]} 40. h4 {[%emt 0:02:48]} Ke7 {[%emt 0:01:20]} (40... b3 $142 41. Rc4 Rg8) 41. Rc6 {[%emt 0:30:33] Weighted Error Value: White=0.30/Black=0.42} 1-0

[Event "Prague Festival Open 2022"]
[Site "Prague"]
[Date "2022.06.11"]
[Round "2.1"]
[White "Motylev, Alexander"]
[Black "Mannion, Stephen R"]
[Result "1-0"]
[ECO "C92"]
[WhiteElo "2633"]
[BlackElo "2247"]
[Annotator "TA"]
[PlyCount "73"]
[EventDate "2022.06.10"]
[EventType "swiss"]
[EventCountry "CZE"]
[SourceTitle "playchess.com"]
[Source "ChessBase"]
[SourceQuality "1"]
[TimeControl "40/5400+30:1800+30"]

{[%evp 20,73,23,22,28,12,26,20,31,27,25,36,43,3,75,50,56,56,79,54,81,0,12,0,47,52,212,204,225,222,226,226,233,224,219,216,261,259,390,389,344,380,414,403,440,439,456,411,567,565,818,807,862,849,1306,1240]} 1. e4 {[%emt 0:00:03]} e5 {[%emt 0:00:08]} 2. Nf3 {[%emt 0:00:06]} Nc6 {[%emt 0:00:05]} 3. Bb5 {[%emt 0:00:05]} a6 {[%emt 0:00:10]} 4. Ba4 {[%emt 0:00:05]} Nf6 {[%emt 0:00:08]} 5. O-O {[%emt 0:00:09]} Be7 {[%emt 0:00:13]} 6. Re1 {[%emt 0:00:06]} b5 {[%emt 0:00:10]} 7. Bb3 {[%emt 0:00:05]} d6 {[%emt 0:00:11]} 8. c3 {[%emt 0:00:11]} O-O {[%emt 0:00:20]} 9. h3 {[%emt 0:00:19]} Bb7 {[%emt 0:01:03]} 10. d4 {[%emt 0:00:44]} Nd7 {[%emt 0:00:35]} 11. Nbd2 {[%emt 0:00:43][%cal Bb1d2,Bd2f1,Bf1g3][%mdl 32]} exd4 {[%emt 0:00:49] C92: Closed Ruy Lopez: 9...Be6, Karpov and Flohr-Zaitsev Variations.} 12. cxd4 {[%emt 0:00:07]} Bf6 {[%emt 0:00:07]} 13. Nf1 {[%emt 0:00:20]} Na5 {[%emt 0:00:14] The position is equal.} 14. Bc2 {[%emt 0:00:22]} Re8 {[%emt 0:00:47] Prevents e5.} 15. Ng3 {[%emt 0:00:19]} g6 $1 {[%emt 0:01:56] Prevents Nf5.} 16. Bh6 {[%emt 0:02:09]} c5 {[%emt 0:04:46]} (16... Nc4 $11) 17. e5 $1 $16 {[%emt 0:01:23]} dxe5 {[%emt 0:04:07]} 18. dxc5 {[%emt 0:00:13]} Qc7 {[%emt 0:13:03] [#]} 19. b4 $146 {[%emt 0:31:14]} ({Predecessor:} 19. Rc1 Rad8 20. Qe2 Bg7 21. Bxg7 Kxg7 22. b4 Bxf3 23. Qxf3 Nc6 24. Ne4 Nd4 25. Qg3 {½-½ (48) Baron,T (2541)-Postny,E (2605) Jerusalem 2019}) 19... Nc4 {[%emt 0:20:57]} 20. Nh2 {[%emt 0:03:29]} (20. Nd2 $16) 20... a5 {[%emt 0:16:08]} (20... Qc6 21. Be4 Qc7 22. Qf3 Bxe4 23. Nxe4 $16) 21. Ng4 {[%emt 0:05:46][%cal Od1d7]} Bh8 {[%emt 0:00:13]} (21... Bg7 $11 {deserves consideration.}) 22. Ne4 $36 {[%emt 0:15:20][%mdl 2048] White is more active.} Ra6 $2 {[%emt 0:16:00] [#] Black cannot hold the game after this.} (22... axb4 $2 23. Qxd7 $3 {[%mdl 512]} Qxd7 24. Ngf6+ Bxf6 25. Nxf6+ Kh8 26. Nxd7 $18) ({Black should play} 22... Bxe4 $14 23. Bxe4 Rad8) 23. a4 $1 $18 {[%emt 0:15:13][%cal Ba2a4,Ba4b5][%mdl 32]} axb4 {[%emt 0:00:11] Threatens to win with ...Bxe4.} 24. axb5 {[%emt 0:00:56]} Rxa1 {[%emt 0:00:31]} 25. Qxa1 {[%emt 0:00:21]} Bxe4 {[%emt 0:00:25]} 26. Bxe4 {[%emt 0:00:31] And now Rc1 would win.} (26. Rxe4 Qxc5 27. Qa2 Nd6 $14) 26... Nxc5 {[%emt 0:03:43] [#]} 27. Bc6 {[%emt 0:01:11]} ({Weaker is} 27. Bd5 Nb6 28. Bc6 Rb8 $11) 27... Rb8 {[%emt 0:11:15]} 28. Qc1 {[%emt 0:07:23]} Nd3 {[%emt 0:00:06] [#]} (28... Nd6 {keeps fighting.}) 29. Qxc4 $1 {[%emt 0:00:30]} Nxe1 {[%emt 0:00:04]} 30. Bd2 {[%emt 0:00:54] This bishop pair is nice.} b3 {[%emt 0:04:16]} 31. Qxb3 {[%emt 0:02:28]} h5 {[%emt 0:00:06]} 32. Ne3 {[%emt 0:01:26]} Nxg2 {[%emt 0:01:23]} (32... Qxc6 $2 33. bxc6 Rxb3 34. c7) 33. Kxg2 {[%emt 0:00:49]} ({Less strong is} 33. Bxg2 Qd7 34. Nd5 (34. Bd5 Rxb5 35. Qc4 Rb8 $11) 34... Rxb5 $14) 33... Bg7 {[%emt 0:00:26]} (33... Qxc6+ $2 34. bxc6 Rxb3 35. c7 $18) 34. Nd5 {[%emt 0:01:14] White is clearly winning.} Qd6 {[%emt 0:00:33]} 35. Bb4 {[%emt 0:01:22]} Qd8 {[%emt 0:00:10]} 36. Be7 {[%emt 0:01:27]} Qa5 {[%emt 0:01:01]} 37. Bd6 {[%emt 0:00:33] Weighted Error Value: White=0.05 (flawless) /Black=0.42} 1-0

[Event "Prague Festival Open 2022"]
[Site "Prague"]
[Date "2022.06.11"]
[Round "2.2"]
[White "Walek, Petr"]
[Black "Wagner, Dennis"]
[Result "1/2-1/2"]
[ECO "C88"]
[WhiteElo "2248"]
[BlackElo "2586"]
[Annotator "TA"]
[PlyCount "145"]
[EventDate "2022.06.10"]
[EventType "swiss"]
[EventCountry "CZE"]
[SourceTitle "playchess.com"]
[Source "ChessBase"]
[SourceQuality "1"]
[TimeControl "40/5400+30:1800+30"]

{[%evp 19,144,19,5,14,18,10,37,8,39,39,35,22,35,4,36,46,51,24,43,39,81,75,116,108,103,109,118,91,88,88,85,79,130,105,129,67,108,102,150,150,143,143,354,360,352,347,1497,1530,1498,1479,1472,1435,29991,29981,29981,29982,29981,29967,2514,557,634,658,656,646,653,645,604,646,635,646,680,657,575,539,697,691,638,677,826,820,644,827,729,791,1119,1114,1275,1067,933,796,1306,1288,1298,1301,1252,1177,637,0,1063,1079,1243,1214,965,0,1202,1160,1142,1132,1384,1332,1830,1683,2366,2394,2137,2095,1933,1462,1955,1739,840,845,760,0,0,0,0]} 1. e4 {[%emt 0:00:03] Marin,M} e5 {[%emt 0:00:38]} 2. Nf3 {[%emt 0:00:07]} Nc6 {[%emt 0:00:04]} 3. Bb5 {[%emt 0:00:10]} a6 {[%emt 0:00:19]} 4. Ba4 {[%emt 0:00:05]} Nf6 {[%emt 0:00:05]} 5. O-O {[%emt 0:00:09]} Be7 {[%emt 0:02:14]} 6. Re1 {[%emt 0:00:15]} b5 {[%emt 0:00:07]} 7. Bb3 {[%emt 0:00:04]} O-O {[%emt 0:00:09]} 8. a4 {[%emt 0:00:32]} b4 {[%emt 0:01:54]} 9. d4 {[%emt 0:00:35]} d6 {[%emt 0:00:07]} 10. dxe5 {[%emt 0:00:36]} Nxe5 {[%emt 0:04:54]} 11. Nxe5 {[%emt 0:01:01] C88: Closed Ruy Lopez: Anti-Marshall Systems.} dxe5 {[%emt 0:00:07]} 12. Qe2 {[%emt 0:02:36]} Bb7 {[%emt 0:10:17]} 13. f3 {[%emt 0:09:26] White is slightly better.} Nh5 {[%emt 0:06:57] [#]} 14. Be3 $146 {[%emt 0:04:23] Inhibits Bc5.} ({Predecessor:} 14. g3 Kh8 15. Be3 f5 16. exf5 Rxf5 17. Nd2 Qd6 18. Bc4 Raf8 19. Rf1 e4 20. f4 {1-0 (35) Nisipeanu,L (2668)-Sokolov,I (2673) Kemer 2007 CBM 121 [Marin,M]}) 14... Nf4 {[%emt 0:01:01]} 15. Qf1 {[%emt 0:01:35]} a5 {[%emt 0:28:59]} 16. Bc4 {[%emt 0:09:15] Prevents Ba6.} Bd6 {[%emt 0:04:00]} 17. Nd2 {[%emt 0:07:53]} Kh8 {[%emt 0:02:05]} 18. Nb3 {[%emt 0:05:44]} Qe7 {[%emt 0:00:55]} 19. Rad1 {[%emt 0:14:24]} g5 {[%emt 0:00:32]} 20. g3 {[%emt 0:06:22]} Rg8 {[%emt 0:07:06][%cal Ob7c8]} 21. Kh1 $36 {[%emt 0:04:11][%mdl 2048] White has strong initiative.} Ne6 {[%emt 0:01:13]} 22. Bd5 {[%emt 0:01:46]} c6 {[%emt 0:01:36]} 23. Bc4 {[%emt 0:04:39]} Bc8 {[%emt 0:00:17]} 24. Rd2 {[%emt 0:03:16]} Bc7 {[%emt 0:00:17]} 25. Red1 {[%emt 0:02:17]} Rg6 {[%emt 0:03:49]} ({Black should try} 25... h5) 26. Qf2 {[%emt 0:05:27]} Kg7 {[%emt 0:02:58]} 27. Bb6 {[%emt 0:03:53]} (27. Bxe6 $16 Qxe6 28. Nc5) 27... h5 {[%emt 0:12:16]} 28. Bxc7 {[%emt 0:02:52]} Nxc7 {[%emt 0:00:20]} (28... Qxc7 $142 29. Nc5 Qa7 30. Bxe6 Bxe6) 29. Nc5 $16 {[%emt 0:06:17][%cal Od2d7,Bb3c5,Bc5d7,Bd7b6][%mdl 32] Strongly threatening Rd7!} Ne6 {[%emt 0:05:19]} 30. Nd7 {[%emt 0:01:48] White is much more active. The black rooks are badly placed.} Nf8 {[%emt 0:01:46] [#]} (30... Bxd7 $16 31. Rxd7 Qf6) 31. Nb6 $1 $18 {[%emt 0:01:39]} Rb8 {[%emt 0:00:01]} 32. Rd8 {[%emt 0:00:29]} Qc7 {[%emt 0:02:34]} (32... c5) 33. Qc5 {[%emt 0:00:16][%csl LRa5,LRf8]} Nh7 {[%emt 0:00:12]} 34. Nxc8 {[%emt 0:00:51]} Rxc8 {[%emt 0:00:25]} 35. R8d7 {[%emt 0:00:23]} Qb8 {[%emt 0:00:07]} 36. Rxf7+ {[%emt 0:00:22]} Kh6 {[%emt 0:00:08]} 37. Qe7 {[%emt 0:01:31][%csl Ge7][%cal Rf7h7]} Rh8 {[%emt 0:02:05]} 38. Rd7 {[%emt 0:01:38]} Qg8 {[%emt 0:00:01]} 39. Rf6 {[%emt 0:00:28]} Nxf6 {[%emt 0:01:06]} 40. Bxg8 {[%emt 0:00:11]} Nxd7 {[%emt 0:00:33]} 41. Be6 {[%emt 0:07:20]} Rg7 {[%emt 0:08:08]} 42. Qd6 {[%emt 0:02:40] White threatens Bf5+ and mate.} Nf8 {[%emt 0:00:15]} 43. Bf5+ {[%emt 0:02:20]} Ng6 {[%emt 0:00:01]} 44. Qxc6 {[%emt 0:02:55]} Rd8 {[%emt 0:06:39]} 45. Qf6 {[%emt 0:01:43]} Rf8 {[%emt 0:00:39]} 46. Qb6 {[%emt 0:02:17]} Ra8 {[%emt 0:01:54]} 47. c4 {[%emt 0:02:14]} bxc3 {[%emt 0:00:06]} 48. bxc3 {[%emt 0:00:07]} Raa7 {[%emt 0:02:08]} 49. h4 {[%emt 0:07:07]} gxh4 {[%emt 0:06:51]} 50. gxh4 {[%emt 0:00:01]} (50. Bxg6 Rab7 51. Qf6 (51. Qxa5 Rxg6 52. Qxe5 hxg3 $11) (51. Qe3+ Kxg6 52. Qc5 Rb1+ 53. Kg2 Rb2+ 54. Kh1 Rb1+ 55. Kh2 Rb2+ 56. Kh1 Rb1+ $11) 51... Rxg6 52. Qh8+ (52. Qxh4 Rd6 $11) (52. Qxe5 hxg3 53. Qh8+ Rh7 $11) 52... Rh7 $11) 50... Rab7 {[%emt 0:02:07]} 51. Qf6 {[%emt 0:00:19]} Kh7 {[%emt 0:04:43]} 52. c4 {[%emt 0:01:19]} Rb1+ {[%emt 0:01:05]} 53. Kh2 {[%emt 0:01:05]} Rb2+ {[%emt 0:00:04]} 54. Kh3 {[%emt 0:01:59]} Rb3 {[%emt 0:01:03]} 55. Kg3 {[%emt 0:00:49]} Rb1 {[%emt 0:00:04]} 56. Kf2 {[%emt 0:01:10]} Rb2+ {[%emt 0:00:40]} 57. Kf1 {[%emt 0:00:20]} Rb1+ {[%emt 0:00:45]} 58. Kf2 {[%emt 0:00:05]} (58. Ke2 $142) 58... Rb2+ {[%emt 0:00:02]} 59. Ke3 {[%emt 0:00:15]} Rb3+ {[%emt 0:01:24]} 60. Ke2 {[%emt 0:00:13]} Rb2+ {[%emt 0:00:11]} 61. Ke3 {[%emt 0:00:44]} Rb3+ {[%emt 0:00:14] [#]} 62. Kd2 $1 {[%emt 0:00:09]} Rb2+ {[%emt 0:00:16]} 63. Kc3 {[%emt 0:00:18]} Rf2 {[%emt 0:00:39]} 64. c5 {[%emt 0:01:07][%cal Bc4c5,Bc5c6][%mdl 32]} Rxf3+ {[%emt 0:00:05]} 65. Kc4 {[%emt 0:00:06] Black must now prevent Bxg6+.} Ra3 {[%emt 0:00:47]} 66. Kb5 {[%emt 0:03:17] Hoping for Qg5.} Rb3+ {[%emt 0:00:01]} 67. Ka6 {[%emt 0:01:03]} Rb1 {[%emt 0:02:03]} 68. c6 {[%emt 0:01:10]} Rg8 {[%emt 0:00:03]} 69. Qf7+ {[%emt 0:00:21]} Kh8 {[%emt 0:00:01]} 70. Bxg6 {[%emt 0:00:49]} Rxg6 {[%emt 0:01:39]} 71. Qxg6 $2 {[%emt 0:00:35]} (71. Kxa5 $18 Rg7 72. Qxh5+ Kg8 73. Ka6) 71... Rb6+ $1 $11 {[%emt 0:00:04]} 72. Ka7 {[%emt 0:00:10] Qh6+ would kill now.} Rb7+ $1 {[%emt 0:00:05]} 73. cxb7 {[%emt 0:01:24] Weighted Error Value: White=0.32/Black=0.46} 1/2-1/2